fUSD/lending_fUSD_20250417
["ID","MTS","AMOUNT","RATE_DAILY","PERIOD"]
[358287453,1744896657636,-150.0,0.0074743,120]
[358287454,1744896657645,-150.0,0.0074754,120]
[358287455,1744896657654,-50000.0,0.00747641,120]
[358287456,1744896657664,-20000.0,0.007478,120]
[358287457,1744896657673,-266.67322323,0.00747983,120]
[358287458,1744896657682,-20000.0,0.00748,120]
[358287459,1744896657691,-150.0,0.00748515,120]
[358287460,1744896657700,-150.0,0.00748703,120]
[358287461,1744896657709,-150.0,0.00748703,120]
[358287462,1744896657719,-266.67322323,0.0074878,120]
[358287463,1744896657728,-20000.0,0.007488,120]
[358287464,1744896657738,-10000.0,0.0074888,120]
[358287465,1744896657748,-150.0,0.00748984,120]
[358287466,1744896657757,-150.0,0.0074902,120]
[358287467,1744896657767,-150.0,0.00749023,120]
[358287468,1744896657776,-150.0,0.00749068,120]
[358287469,1744896657785,-150.0,0.00749078,120]
[358287470,1744896657795,-150.0,0.00749084,120]
[358287471,1744896657804,-150.0,0.00749093,120]
[358287472,1744896657813,-150.0,0.00749094,120]
[358287473,1744896657822,-150.0,0.00749147,120]
[358287474,1744896657832,-150.0,0.00749235,120]
[358287475,1744896657841,-150.0,0.00749318,120]
[358287476,1744896657851,-150.0,0.0074932,120]
[358287477,1744896657861,-150.0,0.00749389,120]
[358287478,1744896657870,-150.0,0.00749404,120]
[358287479,1744896657879,-150.0,0.0074943,120]
[358287480,1744896657888,-150.0,0.00749462,120]
[358287481,1744896657897,-150.0,0.00749489,120]
[358287482,1744896657907,-150.0,0.00749534,120]
[358287483,1744896657916,-150.0,0.00749559,120]
[358287484,1744896657925,-266.67322323,0.00749578,120]
[358287485,1744896657935,-150.0,0.00749585,120]
[358287486,1744896657944,-150.0,0.00749588,120]
[358287487,1744896657954,-150.0,0.00749594,120]
[358287488,1744896657963,-150.0,0.00749654,120]
[358287489,1744896657974,-150.0,0.00749686,120]
[358287490,1744896657984,-150.0,0.00749688,120]
[358287491,1744896657994,-150.0,0.00749689,120]
[358287492,1744896658005,-150.0,0.00749724,120]
[358287493,1744896658015,-150.0,0.0074974,120]
[358287494,1744896658025,-150.0,0.00749748,120]
[358287495,1744896658035,-150.0,0.00749755,120]
[358287496,1744896658044,-150.0,0.00749756,120]
[358287497,1744896658055,-150.0,0.00749768,120]
[358287498,1744896658064,-150.0,0.00749785,120]
[358287499,1744896658073,-150.0,0.00749788,120]
[358287500,1744896658083,-150.0,0.00749797,120]
[358287501,1744896658092,-150.0,0.00749798,120]
[358287502,1744896658102,-150.0,0.007498,120]
[358287503,1744896658111,-150.0,0.00749809,120]
[358287504,1744896658121,-150.0,0.00749852,120]
[358287505,1744896658131,-1000.0,0.0074986,120]
[358287506,1744896658140,-150.0,0.00749887,120]
[358287507,1744896658149,-150.0,0.00749891,120]
[358287508,1744896658159,-150.0,0.00749898,120]
[358287509,1744896658168,-20000.0,0.007499,120]
[358287510,1744896658176,-150.0,0.00749908,120]
[358287511,1744896658185,-1000.0,0.00749935,120]
[358287512,1744896658193,-150.0,0.00749936,120]
[358287513,1744896658203,-150.0,0.00749946,120]
[358287514,1744896658212,-150.0,0.00749948,120]
[358287515,1744896658222,-150.0,0.00749949,120]
[358287516,1744896658231,-150.0,0.00749966,120]
[358287517,1744896658240,-150.0,0.00749966,120]
[358287518,1744896658249,-1000.0,0.00749973,120]
[358287519,1744896658259,-1000.0,0.00749974,120]
[358287520,1744896658269,-150.0,0.00749976,120]
[358287521,1744896658279,-150.0,0.00749976,120]
[358287522,1744896658288,-150.0,0.00749977,120]
[358287523,1744896658297,-150.0,0.00749977,120]
[358287524,1744896658310,-10000.0,0.0074999,120]
[358287525,1744896658319,-150.0,0.00749994,120]
[358287526,1744896658329,-150.0,0.00749997,120]
[358287527,1744897017153,780.96043922,0.00049821,30]
[358287528,1744897364638,-151.0,0.00045,120]
[358287529,1744897364676,-151.0,0.00045,120]
[358287530,1744897364714,-150.0,0.00051205,10]
[358287531,1744897364750,-150.0,0.00051205,10]
[358287532,1744897364787,-150.0,0.00051205,10]
[358287533,1744897364823,-200.0,0.00051205,10]
[358287534,1744897364858,-150.0,0.00051205,10]
[358287535,1744897364893,-150.0,0.00051205,10]
[358287536,1744897364928,-200.0,0.00051205,10]
[358287537,1744897364964,-155.1566903,0.00051205,10]
[358287538,1744897365000,-150.0,0.00051205,10]
[358287539,1744897365036,-150.0,0.00051205,10]
[358287540,1744897365071,-200.0,0.00051205,10]
[358287541,1744897365107,-150.0,0.00051205,10]
[358287542,1744897365143,-150.0,0.00051205,10]
[358287543,1744897365179,-200.0,0.00051205,10]
[358287544,1744897365216,-150.0,0.00051205,10]
[358287545,1744897365254,-150.0,0.00051205,10]
[358287546,1744897365291,-200.0,0.00051205,10]
[358287547,1744897365328,-150.0,0.00051205,10]
[358287548,1744897365363,-150.0,0.00051205,10]
[358287549,1744897365401,-200.0,0.00051205,10]
[358287550,1744897365438,-150.0,0.00051205,10]
[358287551,1744897365473,-150.0,0.00051205,10]
[358287552,1744897365510,-150.0,0.00051205,10]
[358287553,1744897365551,-200.0,0.00051205,10]
[358287554,1744897365588,-500.0,0.00051205,10]
[358287555,1744897365627,-500.0,0.00051205,10]
[358287556,1744897365663,-404.0,0.00051205,10]
[358287557,1744897365698,-150.0,0.00051205,10]
[358287558,1744897365734,-150.0,0.00051205,10]
[358287559,1744897365769,-200.0,0.00051205,10]
[358287560,1744897365805,-500.0,0.00051205,10]
[358287561,1744897365840,-500.0,0.00051205,10]
[358287562,1744897365876,-500.0,0.00051205,10]
[358287563,1744897365912,-569.0,0.00051205,10]
[358287564,1744897365948,-862.754,0.00051505,10]
[358287565,1744897365984,-760.5672,0.000599,10]
[358287566,1744897366020,-349.81,0.000599,30]
[358287567,1744897366058,-182.73,0.000599,30]
[358287568,1744897366095,-447.95,0.000599,30]
[358287569,1744897366133,-300.0,0.000599,30]
[358287570,1744897366173,-349.81,0.000599,30]
[358287571,1744897366222,-349.81,0.000599,30]
[358287572,1744897366265,-349.81,0.000599,30]
[358287573,1744897366311,-411.37299284,0.00059999,30]
[358287574,1744897366359,-752.071,0.00059999,120]
[358287575,1744897366405,-254.318,0.00059999,120]
[358287576,1744897366449,-1360.46157396,0.00063002,5]
[358287577,1744897366495,-500.0,0.00063013,120]
[358287578,1744897366538,-229.46958004,0.00063013,120]
[358287579,1744897366583,-501.0,0.00063013,120]
[358287580,1744897366630,-500.0,0.00063013,120]
[358287581,1744897366676,-500.0,0.00063013,120]
[358287582,1744897366724,-551.28121874,0.00063013,120]
[358287583,1744897366769,-398.7182927,0.00063013,120]
[358287584,1744897366813,-500.0,0.00063013,120]
[358287585,1744897366857,-611.2333231,0.00063013,120]
[358287586,1744897366902,-500.0,0.00063013,120]
[358287587,1744897366945,-617.35514319,0.00063013,120]
[358287588,1744897366991,-500.0,0.00063013,120]
[358287589,1744897367036,-500.0,0.00063013,120]
[358287590,1744897367079,-1000.0,0.00063013,120]
[358287591,1744897367123,-228.11197106,0.00063013,120]
[358287592,1744897367167,-500.0,0.00063013,120]
[358287593,1744897367216,-571.57,0.00063013,120]
[358287594,1744897367257,-623.5951282,0.00063013,120]
[358287595,1744897367299,-500.0,0.00063013,120]
[358287596,1744897367344,-500.0,0.00063013,120]
[358287597,1744897367386,-500.0,0.00063013,120]
[358287598,1744897367426,-500.0,0.00063013,120]
[358287599,1744897367466,-500.0,0.00063013,120]
[358287600,1744897367507,-500.0,0.00063013,120]
[358287601,1744897367550,-500.0,0.00063013,120]
[358287602,1744897367591,-500.0,0.00063013,120]
[358287603,1744897367644,-500.0,0.00063013,120]
[358287604,1744897367697,-500.0,0.00063013,120]
[358287605,1744897367743,-531.21188002,0.00063013,120]
[358287606,1744897367790,-500.0,0.00063013,120]
[358287607,1744897367836,-500.0,0.00063013,120]
[358287608,1744897367878,-500.0,0.00063013,120]
[358287609,1744897367921,-500.0,0.00063013,120]
[358287610,1744897367969,-500.0,0.00063013,120]
[358287611,1744897368019,-500.0,0.00063013,120]
[358287612,1744897368071,-500.0,0.00063013,120]
[358287613,1744897368125,-500.0,0.00063013,120]
[358287614,1744897368174,-500.0,0.00063013,120]
[358287615,1744897368221,-500.0,0.00063013,120]
[358287616,1744897368270,-500.0,0.00063013,120]
[358287617,1744897368318,-500.0,0.00063013,120]
[358287618,1744897368552,-500.0,0.00063013,120]
[358287619,1744897368597,-500.0,0.00063013,120]
[358287620,1744897368638,-500.0,0.00063013,120]
[358287621,1744897368678,-500.0,0.00063013,120]
[358287622,1744897368719,-500.0,0.00063013,120]
[358287623,1744897368760,-500.0,0.00063013,120]
[358287624,1744897368805,-500.0,0.00063013,120]
[358287625,1744897368855,-503.02169228,0.00067707,15]
[358287626,1744897368898,-500.0,0.00067707,15]
[358287627,1744897368939,-161.8221155,0.00068662,15]
[358287628,1744897368982,-383.0,0.0007,120]
[358287629,1744897369026,-165.8564054,0.00071232,120]
[358287630,1744897369069,-500.0,0.00071232,120]
[358287631,1744897369111,-580.71,0.00071232,120]
[358287632,1744897369156,-282.6186599,0.00071232,120]
[358287633,1744897369200,-571.57,0.00071232,120]
[358287634,1744897369243,-500.0,0.00071232,120]
[358287635,1744897369288,-500.0,0.00071232,120]
[358287636,1744897369328,-500.0,0.00071232,120]
[358287637,1744897369366,-500.0,0.00071232,120]
[358287638,1744897369403,-500.0,0.00071232,120]
[358287639,1744897369452,-500.0,0.00071232,120]
[358287640,1744897369496,-505.27,0.00071232,120]
[358287641,1744897369536,-500.0,0.00071232,120]
[358287642,1744897369576,-500.0,0.00071232,120]
[358287643,1744897369616,-500.0,0.00071232,120]
[358287644,1744897369661,-500.0,0.00071232,120]
[358287645,1744897369706,-500.0,0.00071232,120]
[358287646,1744897369753,-500.0,0.00071232,120]
[358287647,1744897369805,-500.0,0.00071232,120]
[358287648,1744897369845,-500.0,0.00071232,120]
[358287649,1744897369884,-356.86181684,0.00071232,120]
[358287650,1744897369923,-500.0,0.00071232,120]
[358287651,1744897369966,-500.0,0.00071232,120]
[358287652,1744897370007,-500.0,0.00071232,120]
[358287653,1744897370047,-500.0,0.00071232,120]
[358287654,1744897370087,-500.0,0.00071232,120]
[358287655,1744897370127,-752.071,0.00072499,120]
[358287656,1744897370167,-794.0,0.000794,30]
[358287657,1744897370207,-571.57,0.00079452,120]
[358287658,1744897370248,-500.0,0.00079452,120]
[358287659,1744897370289,-500.0,0.00079452,120]
[358287660,1744897370328,-618.93,0.00079452,120]
[358287661,1744897370367,-310.44,0.00079452,120]
[358287662,1744897370409,-458.9427191,0.00079452,120]
[358287663,1744897370449,-500.0,0.00079452,120]
[358287664,1744897370491,-500.0,0.00079452,120]
[358287665,1744897370533,-500.0,0.00079452,120]
[358287666,1744897370575,-500.0,0.00079452,120]
[358287667,1744897370617,-500.0,0.00079452,120]
[358287668,1744897370660,-752.071,0.00085,120]
[358287669,1744897370701,-165.16,0.00085496,120]
[358287670,1744897370740,-571.57,0.00087671,120]
[358287671,1744897370780,-500.0,0.00087671,120]
[358287672,1744897370817,-500.0,0.00087671,120]
[358287673,1744897370863,-500.0,0.00087671,120]
[358287674,1744897370904,-500.0,0.00087671,120]
[358287675,1744897370943,-500.0,0.00087671,120]
[358287676,1744897370983,-360.0,0.00089973,120]
[358287677,1744897371024,-260.7,0.00090202,30]
[358287678,1744897371063,-151.0,0.00090493,120]
[358287679,1744897371106,-161.09676596,0.00091083,60]
[358287680,1744897371144,-500.0,0.00091434,120]
[358287681,1744897371182,-500.0,0.00092332,120]
[358287682,1744897371220,-500.0,0.0009293,60]
[358287683,1744897371261,-571.57,0.0009589,120]
[358287684,1744897371299,-500.0,0.0009589,120]
[358287685,1744897371335,-1237.809,0.000965,35]
[358287686,1744897371373,-752.071,0.000975,120]
[358287687,1744897371410,-450.85,0.00099611,120]
[358287688,1744897371446,-526.90384489,0.00099999,120]
[358287689,1744897371482,-503.56904447,0.00099999,120]
[358287690,1744897371629,-500.0,0.00099999,120]
[358287691,1744897371673,-428193.77694151,0.001,120]
[358287692,1744897382274,-500000.0,0.001,120]
[358287693,1744897386524,-71806.22305849,0.001,120]
[358287694,1744897386566,-182.59683452,0.00100102,94]
[358287695,1744897386603,-1037.7507,0.00104009,120]
[358287696,1744897386639,-571.57,0.00104109,120]
[358287697,1744897386676,-450.85,0.00104591,120]
[358287698,1744897386713,-182.59683452,0.00105501,101]
[358287699,1744897386748,-1087.74,0.00106447,120]
[358287700,1744897386784,-500.0,0.00108218,120]
[358287701,1744897386819,-4327.9426,0.00108527,120]
[358287702,1744897386853,-435.7175,0.00108527,120]
[358287703,1744897386889,-33685.5396,0.00108527,120]
[358287704,1744897386924,-2124.33601923,0.00109158,15]
[358287705,1744897386960,-450.85,0.00109572,120]
[358287706,1744897386997,-752.071,0.0011,120]
[358287707,1744897387036,-196469.0,0.0011,120]
[358287708,1744897387075,-182.59683452,0.001109,108]
[358287709,1744897387112,-500.45459974,0.00111,14]
[358287710,1744897387149,-152.77010777,0.00111,60]
[358287711,1744897387184,-500.0,0.00111,14]
[358287712,1744897387221,-500.0,0.00111,60]
[358287713,1744897387259,-500.0,0.00111,30]
[358287714,1744897387297,-500.0,0.00111,60]
[358287715,1744897387333,-505.00166301,0.00111,60]
[358287716,1744897387369,-502.39419378,0.00111,20]
[358287717,1744897387404,-571.57,0.00112328,120]
[358287718,1744897387440,-450.85,0.00114552,120]
[358287719,1744897387476,-160.06140333,0.0011528,60]
[358287720,1744897387513,-500.0,0.00116437,120]
[358287721,1744897387548,-316.37301979,0.00116479,60]
[358287722,1744897387583,-539.00006947,0.00116567,60]
[358287723,1744897387618,-500.0,0.00116567,60]
[358287724,1744897387651,-500.0,0.00116567,60]
[358287725,1744897387687,-162.10057127,0.00116567,60]
[358287726,1744897387722,-314.46744674,0.00116567,60]
[358287727,1744897387759,-162.88544931,0.00117215,14]
[358287728,1744897387794,-161.68971244,0.00117215,60]
[358287729,1744897387828,-159.69875183,0.00117215,14]
[358287730,1744897387866,-153.364938,0.00117215,30]
[358287731,1744897387901,-506.92802041,0.00117215,60]
[358287732,1744897387940,-204.49614819,0.00117215,60]
[358287733,1744897387978,-500.0,0.00117215,60]
[358287734,1744897388017,-502.24507918,0.00117215,14]
[358287735,1744897388054,-500.0,0.00117215,60]
[358287736,1744897388093,-500.0,0.00117215,14]
[358287737,1744897388131,-505.28822684,0.00117215,60]
[358287738,1744897388167,-507.53995681,0.00117215,30]
[358287739,1744897388206,-501.61566963,0.00117215,60]
[358287740,1744897388244,-450.85,0.00119533,120]
[358287741,1744897388282,-161.94,0.00120404,30]
[358287742,1744897388318,-500.0,0.00120414,60]
[358287743,1744897388354,-571.57,0.00120547,120]
[358287744,1744897388392,-1000.0,0.00122046,60]
[358287745,1744897388428,-1000.0,0.00122046,60]
[358287746,1744897388464,-500.0,0.00124656,120]
[358287747,1744897388500,-503.50634492,0.00125894,60]
[358287748,1744897388537,-260.7,0.00126282,30]
[358287749,1744897388572,-165.16,0.00128243,120]
[358287750,1744897388606,-571.57,0.00128767,120]
[358287751,1744897388641,-1609.72,0.00130632,120]
[358287752,1744897388676,-1000.0,0.00132065,60]
[358287753,1744897388711,-500.0,0.00132876,120]
[358287754,1744897388747,-1000.0,0.00133185,120]
[358287755,1744897388784,-151.0,0.00136,120]
[358287756,1744897388821,-571.57,0.00136986,120]
[358287757,1744897388859,-150.0,0.00138946,120]
[358287758,1744897389034,-151.0,0.00139726,120]
[358287759,1744897389075,-151.0,0.00139726,120]
[358287760,1744897389114,-151.0,0.00139726,120]
[358287761,1744897389154,-151.0,0.00139726,120]
[358287762,1744897389192,-151.0,0.00139726,120]
[358287763,1744897389232,-294.179406,0.00139726,120]
[358287764,1744897389280,-294.179406,0.00139726,120]
[358287765,1744897389318,-294.179406,0.00139726,120]
[358287766,1744897389357,-294.179406,0.00139726,120]
[358287767,1744897389399,-294.179406,0.00139726,120]
[358287768,1744897389436,-294.179406,0.00139726,120]
[358287769,1744897389473,-294.179406,0.00139726,120]
[358287770,1744897389511,-294.179406,0.00139726,120]
[358287771,1744897389549,-294.179406,0.00139726,120]
[358287772,1744897389585,-294.179406,0.00139726,120]
[358287773,1744897389622,-294.179406,0.00139726,120]
[358287774,1744897389658,-294.179406,0.00139726,120]
[358287775,1744897389695,-294.179406,0.00139726,120]
[358287776,1744897389734,-294.179406,0.00139726,120]
[358287777,1744897389772,-294.179406,0.00139726,120]
[358287778,1744897389812,-294.179406,0.00139726,120]
[358287779,1744897389848,-294.179406,0.00139726,120]
[358287780,1744897389883,-294.179406,0.00139726,120]
[358287781,1744897389916,-294.179406,0.00139726,120]
[358287782,1744897389950,-294.179414,0.00139726,120]
[358287783,1744897389984,-151.0,0.00139726,120]
[358287784,1744897390024,-151.0,0.00139726,120]
[358287785,1744897390062,-151.0,0.00139726,120]
[358287786,1744897390098,-210.493144,0.00139726,120]
[358287787,1744897390133,-151.0,0.00139726,120]
[358287788,1744897390167,-151.0,0.00139726,120]
[358287789,1744897390206,-151.0,0.00139726,120]
[358287790,1744897390243,-151.0,0.00139726,120]
[358287791,1744897390279,-151.0,0.00139726,120]
[358287792,1744897390315,-151.0,0.00139726,120]
[358287793,1744897390349,-151.0,0.00139726,120]
[358287794,1744897390384,-151.0,0.00139726,120]
[358287795,1744897390419,-151.0,0.00139726,120]
[358287796,1744897390453,-151.0,0.00139726,120]
[358287797,1744897390488,-151.0,0.00139726,120]
[358287798,1744897390525,-151.0,0.00139726,120]
[358287799,1744897390571,-151.0,0.00139726,120]
[358287800,1744897390610,-277.570436,0.00139726,120]
[358287801,1744897390647,-151.0,0.00139726,120]
[358287802,1744897390684,-500.0,0.00141095,120]
[358287803,1744897390723,-571.57,0.00145205,120]
[358287804,1744897390759,-2000.0,0.00146,120]
[358287805,1744897390798,-500.0,0.00149314,120]
[358287806,1744897390833,-212.54,0.00150227,30]
[358287807,1744897390867,-571.57,0.00153424,120]
[358287808,1744897390903,-500.0,0.00157533,120]
[358287809,1744897390943,-151.0,0.00158767,120]
[358287810,1744897390984,-571.57,0.00161643,120]
[358287811,1744897391026,-500.0,0.00165752,120]
[358287812,1744897391071,-571.57,0.00169863,120]
[358287813,1744897391114,-500.0,0.00173972,120]
[358287814,1744897391157,-250.0,0.00174123,120]
[358287815,1744897391195,-508.09,0.00174258,120]
[358287816,1744897391232,-500.0,0.00175066,120]
[358287817,1744897391267,-571.57,0.00178082,120]
[358287818,1744897391304,-151.0,0.00181507,120]
[358287819,1744897391342,-500.0,0.00182191,120]
[358287820,1744897391379,-571.57,0.00186301,120]
[358287821,1744897391414,-542.49830496,0.0019041,120]
[358287822,1744897391448,-571.57,0.0019452,120]
[358287823,1744897391482,-1710.73088844,0.002,120]
[358287824,1744897391516,-161.94,0.00202729,30]
[358287825,1744897391554,-571.57,0.00202739,120]
[358287826,1744897391594,-571.57,0.00210958,120]
[358287827,1744897391632,-352.98,0.00215674,120]
[358287828,1744897391669,-571.57,0.00219178,120]
[358287829,1744897391708,-151.0,0.00227014,120]
[358287830,1744897391747,-571.57,0.00227397,120]
[358287831,1744897391783,-906.0,0.0023189,120]
[358287832,1744897391821,-571.57,0.00235616,120]
[358287833,1744897391860,-249.5,0.00238037,120]
[358287834,1744897391896,-571.57,0.00243835,120]
[358287835,1744897391935,-2000.0,0.00245,120]
[358287836,1744897391972,-1025.06939548,0.0025,120]
[358287837,1744897392009,-678.82,0.00252044,30]
[358287838,1744897392047,-571.61599859,0.00252054,120]
[358287839,1744897392088,-1001.0,0.002548,120]
[358287840,1744897392130,-678.65354403,0.00262621,120]
[358287841,1744897392169,-863.54,0.00272,120]
[358287842,1744897392207,-151.0,0.00272521,120]
[358287843,1744897392245,-151.0,0.00272521,120]
[358287844,1744897392281,-161.94,0.00273962,30]
[358287845,1744897392319,-500.0,0.00273972,120]
[358287846,1744897392354,-319.06769632,0.00273972,120]
[358287847,1744897392391,-500.0,0.00273972,120]
[358287848,1744897392429,-213.89587466,0.00273972,120]
[358287849,1744897392473,-500.0,0.00273972,120]
[358287850,1744897392692,-500.0,0.00273972,120]
[358287851,1744897392736,-500.0,0.00273972,120]
[358287852,1744897392783,-500.0,0.00273972,120]
[358287853,1744897392826,-500.0,0.00273972,120]
[358287854,1744897392867,-500.0,0.00273972,120]
[358287855,1744897392907,-500.0,0.00273972,120]
[358287856,1744897392952,-500.0,0.00273972,120]
[358287857,1744897392994,-500.0,0.00273972,120]
[358287858,1744897393034,-500.0,0.00273972,120]
[358287859,1744897393076,-524.63404989,0.00273972,120]
[358287860,1744897393119,-500.0,0.00273972,120]
[358287861,1744897393161,-500.0,0.00273972,120]
[358287862,1744897393206,-615.19,0.00273972,120]
[358287863,1744897393249,-504.65185615,0.00273972,120]
[358287864,1744897393291,-500.0,0.00273972,120]
[358287865,1744897393329,-500.0,0.00273972,120]
[358287866,1744897393368,-500.0,0.00273972,120]
[358287867,1744897393405,-500.0,0.00273972,120]
[358287868,1744897393442,-500.0,0.00273972,120]
[358287869,1744897393481,-500.0,0.00273972,120]
[358287870,1744897393524,-500.0,0.00273972,120]
[358287871,1744897393565,-500.0,0.00273972,120]
[358287872,1744897393605,-500.0,0.00273972,120]
[358287873,1744897393643,-500.0,0.00273972,120]
[358287874,1744897393678,-500.0,0.00273972,120]
[358287875,1744897393715,-500.0,0.00273972,120]
[358287876,1744897393750,-500.0,0.00273972,120]
[358287877,1744897393787,-500.0,0.00273972,120]
[358287878,1744897393825,-500.0,0.00273972,120]
[358287879,1744897393860,-500.0,0.00273972,120]
[358287880,1744897393895,-500.0,0.00273972,120]
[358287881,1744897393930,-500.0,0.00273972,120]
[358287882,1744897393965,-500.0,0.00273972,120]
[358287883,1744897394001,-500.0,0.00273972,120]
[358287884,1744897394039,-542.16418912,0.00273972,120]
[358287885,1744897394079,-500.0,0.00273972,120]
[358287886,1744897394117,-500.0,0.00273972,120]
[358287887,1744897394153,-500.0,0.00273972,120]
[358287888,1744897394190,-500.0,0.00273972,120]
[358287889,1744897394226,-500.0,0.00273972,120]
[358287890,1744897394265,-500.0,0.00273972,120]
[358287891,1744897394304,-517.18638036,0.00273972,60]
[358287892,1744897394340,-500.0,0.00273972,120]
[358287893,1744897394377,-500.0,0.00273972,120]
[358287894,1744897394414,-500.0,0.00273972,120]
[358287895,1744897394452,-500.0,0.00273972,120]
[358287896,1744897394493,-500.0,0.00273972,120]
[358287897,1744897394534,-500.0,0.00273972,120]
[358287898,1744897394574,-500.0,0.00273972,120]
[358287899,1744897394610,-500.0,0.00273972,120]
[358287900,1744897394646,-238.67354013,0.00273972,120]
[358287901,1744897394684,-500.0,0.00273972,120]
[358287902,1744897394722,-504.95831916,0.00273972,120]
[358287903,1744897394761,-540.69715187,0.00273972,120]
[358287904,1744897394801,-500.0,0.00273972,120]
[358287905,1744897394841,-500.0,0.00273972,120]
[358287906,1744897394879,-500.0,0.00273972,120]
[358287907,1744897394917,-500.0,0.00273972,120]
[358287908,1744897394956,-500.0,0.00273972,120]
[358287909,1744897394993,-500.0,0.00273972,120]
[358287910,1744897395032,-500.0,0.00273972,120]
[358287911,1744897395071,-500.0,0.00273972,120]
[358287912,1744897395109,-505.17720748,0.00273972,120]
[358287913,1744897395146,-500.0,0.00273972,120]
[358287914,1744897395183,-500.0,0.00273972,120]
[358287915,1744897395222,-500.0,0.00273972,120]
[358287916,1744897395266,-500.0,0.00273972,120]
[358287917,1744897395305,-442.17917256,0.00273972,120]
[358287918,1744897395345,-500.0,0.00273972,120]
[358287919,1744897395382,-500.0,0.00273972,120]
[358287920,1744897395418,-500.0,0.00273972,120]
[358287921,1744897395455,-500.0,0.00273972,120]
[358287922,1744897395491,-1000.0,0.00273972,120]
[358287923,1744897395535,-500.0,0.00273972,120]
[358287924,1744897395573,-500.0,0.00273972,120]
[358287925,1744897395616,-500.0,0.00273972,120]
[358287926,1744897395653,-500.0,0.00273972,120]
[358287927,1744897395693,-538.08655781,0.00273972,120]
[358287928,1744897395733,-320.68267179,0.00273972,120]
[358287929,1744897395769,-500.0,0.00273972,120]
[358287930,1744897395811,-500.0,0.00273972,120]
[358287931,1744897395851,-360.9330231,0.00273972,120]
[358287932,1744897395889,-500.0,0.00273972,30]
[358287933,1744897395926,-500.0,0.00273972,120]
[358287934,1744897395963,-521.76939274,0.00273972,120]
[358287935,1744897396000,-500.0,0.00273972,120]
[358287936,1744897396037,-500.0,0.00273972,120]
[358287937,1744897396074,-2065.52,0.00273972,120]
[358287938,1744897396110,-500.0,0.00273972,120]
[358287939,1744897396144,-503.85131081,0.00273972,120]
[358287940,1744897396180,-500.0,0.00273972,120]
[358287941,1744897396216,-500.0,0.00273972,120]
[358287942,1744897396255,-500.0,0.00273972,120]
[358287943,1744897396296,-500.0,0.00273972,120]
[358287944,1744897396337,-500.0,0.00273972,120]
[358287945,1744897396377,-500.0,0.00273972,120]
[358287946,1744897396567,-500.0,0.00273972,120]
[358287947,1744897396610,-500.0,0.00273972,120]
[358287948,1744897396650,-500.0,0.00273972,120]
[358287949,1744897396692,-500.0,0.00273972,120]
[358287950,1744897396735,-500.0,0.00273972,120]
[358287951,1744897396775,-500.0,0.00273972,120]
[358287952,1744897396815,-500.0,0.00273972,120]